Cogmind - Beta 10.1 @@@ ROGUE MODE // 2020.10.02 @ 15:02:43 // Winter2019/RPGLIKE Player: HOTSOUP Result: Destroyed by S-10 Pest with Light Assault Rifle Performance ------------- Evolutions (1) 500 Regions Visited (6) 1200 Robots Destroyed (23) 115 Value Destroyed (552) 552 Prototype IDs (5) 100 Alien Tech Used (0) 0 Bonus (0) 0 TOTAL SCORE: 2467 Bonus ------- None Cogmind --------- Core Integrity 0/600 Matter 250/300 Energy 474/500 System Corruption 0% Temperature Cool (0) Movement Core (50) Location -8/Mines Parts ------- > --- POWER (1) -------- (None) > --- PROPULSION (1) --- (None) > --- UTILITY (4) ------ High-capacity Battery Hacking Suite > --- WEAPON (1) ------- EM Pulse Gun > --- INVENTORY (0) ---- (None) Peak State ------------ > --- POWER ------------ Ion Engine > --- PROPULSION ------- Flight Unit > --- UTILITY ---------- Hacking Suite Bomb Drone Bay > --- WEAPON ----------- EM Pulse Gun > --- INVENTORY -------- (None) [Rating: 20] Favorites ----------- Power Ion Engine Engine Ion Engine Propulsion Flight Unit Flight Unit Flight Unit Utility Hacking Suite Device Bomb Drone Bay Storage High-capacity Battery Processor Visual Processing Unit Hackware Hacking Suite Weapon EM Pulse Gun Energy Gun EM Pulse Gun Slashing Weapon Makeshift Sword Build | -11 -10 -10 -9 -9 -9 -8 ------- Run | Scr Mat Min Mat Min Exi Min Slots Evolved 3 | 2 . . 1 . . . Power . | . . . . . . . Propulsion . | . . . . . . . Utility 3 | 2 . . 1 . . . Weapon . | . . . . . . . Parts Attached 15 | 1 7 1 1 3 2 . Power 1 | . 1 . . . . . Engine 1 | . 1 . . . . . Core . | . . . . . . . Reactor . | . . . . . . . Propulsion 1 | . 1 . . . . . Treads . | . . . . . . . Leg . | . . . . . . . Wheel . | . . . . . . . Hover . | . . . . . . . Flight 1 | . 1 . . . . . Utility 7 | . 4 1 . . 2 . Device 1 | . . 1 . . . . Storage 2 | . . . . . 2 . Processor 3 | . 3 . . . . . Hackware 1 | . 1 . . . . . Protection . | . . . . . . . Artifact . | . . . . . . . Weapon 6 | 1 1 . 1 3 . . Energy Gun 4 | 1 1 . 1 1 . . Energy Cannon . | . . . . . . . Ballistic Gun . | . . . . . . . Ballistic Cannon . | . . . . . . . Launcher . | . . . . . . . Special Weapon . | . . . . . . . Impact Weapon . | . . . . . . . Slashing Weapon 2 | . . . . 2 . . Piercing Weapon . | . . . . . . . Special Melee Weapon . | . . . . . . . Unidentified Prototypes 1 | . . 1 . . . . Parts Lost 1 | . . . 1 . . . Power . | . . . . . . . Propulsion 1 | . . . 1 . . . Utility . | . . . . . . . Weapon . | . . . . . . . Highest Loss Streak 1 | . . . 1 . . . Average Slot Usage (%) 65 | . 78 87 48 42 43 49 Engine 11 | . 8 16 14 14 12 . Flight 7 | . 10 16 10 . . . Device 2 | . . 11 2 . . . Storage 1 | . . . . . 2 21 Processor 14 | . 34 8 . . . . Hackware 12 | . 7 16 14 14 14 14 Energy Gun 14 | . 16 16 7 14 14 14 Naked Turns 4 | . 4 . . . . . Heaviest Build 15 | 2 7 15 15 7 10 10 Greatest Support 9 | 8 9 9 9 8 8 8 Greatest Overweight (x) 1 | . . 1 1 . 1 1 Average Overweight (x) . | . . . . . . . Largest Inventory Capacity . | . . . . . . . Average Capacity . | . . . . . . . Most Carried . | . . . . . . . Average Carried . | . . . . . . . Final Capacity . | . . . . . . . Final Carried . | . . . . . . . Class Distribution -------------------- 100% | Hacker-Mutant Dominant Class ---------------- Hacker-Mutant | -10/Materials Hacker-Mutant | -10/Mines Hacker-Mutant | -9/Materials Hacker-Mutant | -9/Mines Hacker-Mutant | -9/Exiles Hacker-Mutant | -8/Mines Resources | -11 -10 -10 -9 -9 -9 -8 ----------- Run | Scr Mat Min Mat Min Exi Min Matter Collected 300 | 209 71 10 . 10 . . Remotely . | . . . . . . . Salvage Created 720 | . 474 160 . 30 . 56 Parts 51 | . 35 6 . 4 . 6 Haulers Intercepted 1 | . 1 . . . . . Recyclers Shooed . | . . . . . . . Parts Field Recycled . | . . . . . . . Retrieved Matter . | . . . . . . . Parts Self-Destructed . | . . . . . . . Prevented . | . . . . . . . Kills | -11 -10 -10 -9 -9 -9 -8 ------- Run | Scr Mat Min Mat Min Exi Min Combat Hostiles Destroyed 17 | . 12 2 . . . 3 Guns 16 | . 12 1 . . . 3 Classes Destroyed 6 | . 5 1 . . . . Worker 1 | . 1 . . . . . Tunneler 2 | . . 1 . 1 . . Hauler 1 | . 1 . . . . . Watcher 2 | . 2 . . . . . Swarmer 6 | . 3 . . . . 3 Grunt 11 | . 9 2 . . . . Best Kill Streak 4 | . 4 2 . 1 . 3 Combat Bots Only 3 | . 3 2 . . . 3 Max Kills in Single Turn 1 | . 1 1 . 1 . 1 Gunslinging . | . . . . . . . Exploded . | . . . . . . . Melee . | . . . . . . . Uniques/NPCs Destroyed . | . . . . . . . Combat | -11 -10 -10 -9 -9 -9 -8 -------- Run | Scr Mat Min Mat Min Exi Min Damage Taken 1139 | . 453 416 187 . . 83 Core 1012 | . 412 362 163 . . 75 Absorbed by Shields . | . . . . . . . Redirected to Core 428 | . 137 189 78 . . 24 Core Remaining (%) 69 | 100 . 39 . . . . Volleys Fired 137 | 1 94 28 1 3 4 6 Largest 1 | 1 1 1 1 1 1 1 Hottest 40 | 40 40 40 40 40 40 40 Shots Fired 137 | 1 94 28 1 3 4 6 Gun 137 | 1 94 28 1 3 4 6 Cannon . | . . . . . . . Launcher . | . . . . . . . Special . | . . . . . . . Kinetic . | . . . . . . . Thermal . | . . . . . . . Explosive . | . . . . . . . Electromagnetic 137 | 1 94 28 1 3 4 6 Robot Hit Streak 7 | 1 6 5 1 4 . 7 Robot Miss Streak 7 | . 7 3 . . . 2 Penetration Max . | . . . . . . . Secondary Targets . | . . . . . . . Shots Hit Robots 71 | 1 46 16 1 3 . 4 Core Hits 37 | . 26 6 . 2 . 3 Critical Hits . | . . . . . . . Critical Kills . | . . . . . . . Critical Parts Destroyed . | . . . . . . . Melee Attacks . | . . . . . . . Impact . | . . . . . . . Slashing . | . . . . . . . Piercing . | . . . . . . . Sneak Attacks . | . . . . . . . Combat Hostiles . | . . . . . . . Follow-up Attacks . | . . . . . . . Damage Inflicted 1042 | 15 720 215 13 36 . 43 Guns 1042 | 15 720 215 13 36 . 43 Cannons . | . . . . . . . Explosions . | . . . . . . . Melee . | . . . . . . . Ramming . | . . . . . . . Kinetic . | . . . . . . . Thermal . | . . . . . . . Explosive . | . . . . . . . Electromagnetic 1042 | 15 720 215 13 36 . 43 Impact . | . . . . . . . Slashing . | . . . . . . . Piercing . | . . . . . . . Highest Corruption . | . . . . . . . Average Corruption . | . . . . . . . Corruption Purged . | . . . . . . . Overload Shots . | . . . . . . . Overflow Damage . | . . . . . . . Projectiles . | . . . . . . . Explosions . | . . . . . . . Melee . | . . . . . . . Knockbacks . | . . . . . . . Impact . | . . . . . . . Kinetic . | . . . . . . . Secondary . | . . . . . . . Self-Inflicted Damage . | . . . . . . . Shots . | . . . . . . . Rammed . | . . . . . . . Targets Rammed . | . . . . . . . Kicked . | . . . . . . . Crushed . | . . . . . . . Highest Temperature 34 | . 30 34 . . 20 . Average Temperature 9 | . 9 9 . . 20 . Received Heat Transfer 234 | . 135 39 60 . . . Siege Activations . | . . . . . . . Robots Corrupted 1 | . . 1 . . . . Combat Hostiles 1 | . . 1 . . . . Parts Fried 7 | . 5 2 . . . . Impact Corruptions . | . . . . . . . Robots Melted . | . . . . . . . Combat Hostiles . | . . . . . . . Parts Melted . | . . . . . . . Heat Transferred . | . . . . . . . Parts Sabotaged . | . . . . . . . Parts Stolen . | . . . . . . . Parts Stripped . | . . . . . . . Power Chain Reactions . | . . . . . . . Missiles Intercepted . | . . . . . . . Alert | -11 -10 -10 -9 -9 -9 -8 ------- Run | Scr Mat Min Mat Min Exi Min Peak Influence 274 | . 274 70 100 44 . 60 Initial 39 | . . . . 39 . . Average 62 | . 93 30 50 41 . 11 Maximum Alert Level 1 | . 1 . . . . . Low Security (%) 92 | 100 84 100 100 100 . 100 Level 1 7 | . 15 . . . . . Level 2 . | . . . . . . . Level 3 . | . . . . . . . Level 4 . | . . . . . . . Level 5 . | . . . . . . . High Security . | . . . . . . . Max Security . | . . . . . . . Squads Dispatched 4 | . 2 . 2 . . . Investigation 4 | . 2 . 2 . . . Extermination . | . . . . . . . Reinforcement . | . . . . . . . Assault . | . . . . . . . Garrison . | . . . . . . . Intercept . | . . . . . . . Construction Impeded . | . . . . . . . Haulers Reinforced . | . . . . . . . Stealth | -11 -10 -10 -9 -9 -9 -8 --------- Run | Scr Mat Min Mat Min Exi Min Distress Signals 2 | . . . 2 . . . Communications Jammed . | . . . . . . . Distress Signals . | . . . . . . . Times Spotted 76 | . 28 28 15 . . 5 Peak Tracking Total 12 | . 3 12 12 . . 4 Tactical Retreats 11 | . 7 3 1 . . . Traps | -11 -10 -10 -9 -9 -9 -8 ------- Run | Scr Mat Min Mat Min Exi Min Traps Triggered 1 | . 1 . . . . . Indirectly . | . . . . . . . Trap Hack Attempts . | . . . . . . . Triggered . | . . . . . . . Disarmed . | . . . . . . . Reprogrammed 5 | . 5 . . . . . Reused . | . . . . . . . Traps Extracted . | . . . . . . . Installed . | . . . . . . . Triggered . | . . . . . . . Machines | -11 -10 -10 -9 -9 -9 -8 ---------- Run | Scr Mat Min Mat Min Exi Min Machines Disabled 3 | . 2 1 . . . . Max in Single Turn 1 | . 1 1 . . . . Machines Sabotaged . | . . . . . . . Garrisons Compromised . | . . . . . . . Overloaded Fab Kills . | . . . . . . . Fab Network Shutdowns . | . . . . . . . Hacking | -11 -10 -10 -9 -9 -9 -8 --------- Run | Scr Mat Min Mat Min Exi Min Machines Accessed 14 | . 8 1 4 . 1 . Terminals 9 | . 7 . 2 . . . Fabricators . | . . . . . . . Repair Stations 1 | . . . 1 . . . Recycling Units 2 | . 1 . 1 . . . Scanalyzers . | . . . . . . . Garrison Access . | . . . . . . . Total Hacks 52 | . 41 1 9 . 1 . Successful 39 | . 31 1 6 . 1 . Failed 12 | . 9 . 3 . . . Catastrophic . | . . . . . . . Database Lockouts 1 | . 1 . . . . . Manual 32 | . 27 . 5 . . . Terminals 44 | . 38 . 6 . . . Fabricators . | . . . . . . . Repair Stations 2 | . . . 2 . . . Recycling Units 4 | . 3 . 1 . . . Scanalyzers . | . . . . . . . Garrison Access . | . . . . . . . Terminal Hacks 18 | . 13 1 3 . 1 . Record 1 | . . . . . 1 . Part Schematic 2 | . . . 2 . . . Prototype ID Bank 2 | . 2 . . . . . Open Door 1 | . . 1 . . . . Level Access Points 1 | . 1 . . . . . Branch Access Points 2 | . 1 . 1 . . . Terminal Index 1 | . 1 . . . . . Alert Level 1 | . 1 . . . . . Unreport Threat 4 | . 4 . . . . . Reprogram Traps 1 | . 1 . . . . . Hauler Manifests 1 | . 1 . . . . . Registered Components 1 | . 1 . . . . . Fabricator Hacks . | . . . . . . . Repair Station Hacks 2 | . . . 2 . . . Scan Component 1 | . . . 1 . . . Repair 1 | . . . 1 . . . Recycling Unit Hacks 2 | . 2 . . . . . Report Inventory 1 | . 1 . . . . . Retrieve Components 1 | . 1 . . . . . Scanalyzer . | . . . . . . . Garrison Access Hacks . | . . . . . . . Unauthorized Hacks 17 | . 16 . 1 . . . Terminals 15 | . 15 . . . . . Track 3 | . 3 . . . . . Assimilate 1 | . 1 . . . . . Botnet 5 | . 5 . . . . . Detonate 3 | . 3 . . . . . Disrupt 1 | . 1 . . . . . Operators 2 | . 2 . . . . . Fabricators . | . . . . . . . Repair Stations . | . . . . . . . Recycling Units 2 | . 1 . 1 . . . Tunnel 2 | . 1 . 1 . . . Scanalyzers . | . . . . . . . Garrison Access . | . . . . . . . Data Cores Recovered . | . . . . . . . Used . | . . . . . . . Hacking Detections 8 | . 5 . 3 . . . Full Trace Events 2 | . 1 . 1 . . . Feedback Events . | . . . . . . . Feedback Blocked . | . . . . . . . Robot Schematics Acquired . | . . . . . . . Robots Built . | . . . . . . . Matter . | . . . . . . . Time . | . . . . . . . Total Robot Build Rating . | . . . . . . . Part Schematics Acquired 2 | . . . 2 . . . Parts Built . | . . . . . . . Matter . | . . . . . . . Time . | . . . . . . . Total Part Build Rating . | . . . . . . . Parts Repaired 1 | . . . 1 . . . Time 26 | . . . 26 . . . Parts Recycled . | . . . . . . . Recycled Matter . | . . . . . . . Retrieved Matter . | . . . . . . . Retrieved Components 7 | . 7 . . . . . Parts Scanalyzed . | . . . . . . . Part Schematics Acquired . | . . . . . . . Parts Damaged . | . . . . . . . Bothacking | -11 -10 -10 -9 -9 -9 -8 ------------ Run | Scr Mat Min Mat Min Exi Min Used RIF Installer . | . . . . . . . Robots Hacked . | . . . . . . . Non-combat . | . . . . . . . Combat . | . . . . . . . Robot Hacks Applied . | . . . . . . . Relay Couplers Released . | . . . . . . . Robots Rewired . | . . . . . . . Allies Hacked . | . . . . . . . Hacks Repelled . | . . . . . . . Allies | -11 -10 -10 -9 -9 -9 -8 -------- Run | Scr Mat Min Mat Min Exi Min Total Allies 3 | . 1 . . 2 . . Largest Group 2 | . 1 . . 2 2 . Highest-Rated Group 43 | . 10 . . 43 43 . Highest-Rated Ally 31 | . 10 . . 31 31 . Total Orders 3 | . . 2 1 . . . ROAM 2 | . . 1 1 . . . EXPLORE 1 | . . 1 . . . . Ally Attacks 15 | . . 15 . . . . Total Damage . | . . . . . . . Kills . | . . . . . . . Allies Corrupted 1 | . . . 1 . . . Allies Melted . | . . . . . . . Intel | -11 -10 -10 -9 -9 -9 -8 ------- Run | Scr Mat Min Mat Min Exi Min Robot Analysis Total . | . . . . . . . Derelict Logs Recovered 1 | . . . . 1 . . Drone Launches 16 | . . 16 . . . . Drone Recoveries . | . . . . . . . Exploration | -11 -10 -10 -9 -9 -9 -8 ------------- Run | Scr Mat Min Mat Min Exi Min Turns Passed 1884 | 19 678 408 113 172 453 41 Spaces Moved 2132 | 31 871 310 184 250 449 37 Core 1125 | 31 301 . 57 250 449 37 Treads . | . . . . . . . Legs . | . . . . . . . Wheels . | . . . . . . . Hover . | . . . . . . . Flight 1007 | . 570 310 127 . . . Fastest Speed 40 | 50 40 40 40 50 50 50 Average Speed 53 | 50 43 85 44 50 53 71 Slowest Speed 120 | 50 50 120 120 50 100 100 Overloaded Moves . | . . . . . . . Propulsion Burnouts . | . . . . . . . Robots Hopped 8 | . 5 2 1 . . . Cave-ins Triggered . | . . . . . . . Exploration Rate (%) 52 | 3 94 94 27 51 85 13 Regions Visited 6 Branch Regions 4 Pre-discovered Areas 3 | . 1 1 1 . . . Known Exits Taken 3 | . 1 1 1 . . . Unknown Exits Taken 3 | 1 . . . 1 1 . Scrap Searched . | . . . . . . . Spaces Dug . | . . . . . . . Terrain Destroyed . | . . . . . . . Melee . | . . . . . . . Projectile . | . . . . . . . AOE . | . . . . . . . Terrain Rammed . | . . . . . . . Walls Destroyed . | . . . . . . . Machines Disabled . | . . . . . . . Actions | -11 -10 -10 -9 -9 -9 -8 --------- Run | Scr Mat Min Mat Min Exi Min Total 2729 | 32 1067 422 212 293 657 46 Wait 431 | . 81 84 27 35 202 2 Move 2110 | 30 860 305 181 249 448 37 Hop 8 | . 5 2 1 . . . Pick Up . | . . . . . . . Fast Attach 15 | 1 7 1 1 3 2 . Attach . | . . . . . . . Detach . | . . . . . . . Swap . | . . . . . . . Drop 9 | . 1 2 1 3 1 1 Fire 137 | 1 94 28 1 3 4 6 Melee . | . . . . . . . Ram . | . . . . . . . Kick . | . . . . . . . Crush . | . . . . . . . Escape Stasis . | . . . . . . . Rewire . | . . . . . . . Trap . | . . . . . . . Miscellaneous 19 | . 19 . . . . . Route ------- -11/Scrapyard -10/Materials (discovered 4 exits: *Mat x3 / *Min) -10/Mines (discovered 2 exits: *Mat x2) -9/Materials (discovered 2 exits: *Min / Sto) -9/Mines -9/Exiles -8/Mines (discovered 1 exit: [*Mat]) History --------- Turn | Location | Event 1 | -11/Scrapyard | Upgraded with Utility slot (x2) 12 | -11/Scrapyard | Discovered new exit (range 13) 20 | -11/Scrapyard | Entered Materials 58 | -10/Materials | Discovered new exit (range 16) 94 | -10/Materials | Identified exit to Materials 197 | -10/Materials | Identified exit to Mines 295 | -10/Materials | Core integrity fell below 50% 308 | -10/Materials | Build established: Hacker-Mutant 535 | -10/Materials | Reached level 2 545 | -10/Materials | Central database locked down 698 | -10/Materials | Entered Mines 801 | -10/Mines | Found the Drone Emporium 803 | -10/Mines | Found Prototype Device 803 | -10/Mines | Identified Bomb Drone Bay 893 | -10/Mines | Discovered exit to Materials (range 40) 976 | -10/Mines | Assembled infested the area 1016 | -10/Mines | Discovered exit to Materials (range 12) 1034 | -10/Mines | Learned location of Storage (-9) 1106 | -10/Mines | Entered Materials 1106 | -9/Materials | Accompanied by 1 ally 1107 | -9/Materials | Core integrity fell below 50% 1108 | -9/Materials | Reached level 3 1109 | -9/Materials | Upgraded with Utility slot (x1) 1126 | -9/Materials | Identified exit to Mines 1126 | -9/Materials | Identified exit to Storage 1185 | -9/Materials | Repaired EM Pulse Gun? 1210 | -9/Materials | Core integrity fell below 20% 1219 | -9/Materials | Entered Mines 1221 | -9/Mines | Reached level 4 1259 | -9/Mines | Met a Derelict bent on vengeance 1350 | -9/Mines | Learned Materials terminal intel 1353 | -9/Mines | A weapon hastily lodged in a ceiling crevice suddenly fell to the ground 1366 | -9/Mines | Deemed a non-threat by the Exiles lab entrance 1367 | -9/Mines | Discovered new exit (range 5) 1391 | -9/Mines | Entered Exiles 1391 | -9/Exiles | Found Exiles lab abandoned 1391 | -9/Exiles | Accompanied by 2 allies 1421 | -9/Exiles | Led the pair of lost Derelicts to a safe place 1835 | -9/Exiles | Discovered new exit (range 10) 1844 | -9/Exiles | Entered Mines 1873 | -8/Mines | Discovered new exit (range 8) 1885 | -8/Mines | Destroyed by S-10 Pest with Light Assault Rifle Last Messages --------------- 01781_ Extracted 1 energy. 01781_ Acquired Hcp. Battery. 01783_ Dropped Ion Engine. 01812_ Extracted 1 energy. 01812_ Acquired Hcp. Battery. 01835_ EXIT=FOUND LOCATION=UNKNOWN GOAL=ESCAPE 01845_ K-01 Serf collects debris. 01851_ K-01 Serf cleans the Laser Drill. 01860_ Dropped Hcp. Battery. 01870_ K-01 Serf collects debris. 01873_ EXIT=FOUND 01874_ C-30 ARC bursts open, deploying its payload. 01874_ S-10 Pest unfolds itself. 01874_ K-01 Serf collects debris. 01874_ S-10 Pest destroyed. 01877_ K-01 Serf collects debris. 01882_ S-10 Pest destroyed. 01884_ K-01 Serf collects debris. Map ----- +----------------------------------------------------+ | ?????????????????????????????????????????????????? | | ?????????????????????????????????????????????????? | | ?????????????????????????????????????????????????? | | ?????????????????????????????????????????????????? | | ?????????????????????????????????????????????????? | | ????????????????????????????###############??????? | | ????????????????????????????# #??????? | | ?????????????### #########??# #??????? | | ?????????# ! #??# """ ""?????????? | | ?????????????###### #### #??# """ ""?????????? | | ???????????????????????# #??# """ """????????? | | ???????????????????????# #### #??????? | | ???????????????????????# """ """ """ #??????? | | ???????????????????????## ### """ """ """????????? | | ????????????????????????# #?# """ """ ""?????????? | | ????????????????????????#r#?# ?????????? | | ????????????????????????# #?# ???????????? | | ????????????????????????# #?### #####???????????? | | ????????????????????????# #???? #???????????????? | | ????????????????????????# #???? #???????????????? | | ????????????????????????# #???? ???????????????? | | ????????????????????????# #?????###??????????????? | | ????????????????????????# #?????? #??????????????? | | ????????????????????????# #???? #??????????????? | | ????????????????????????#=#?? """ ???????????????? | | ????????????????????????#@#% """ #??????????????? | | ????????????????????????#[s%% """ #??????????????? | | ????????????????????????###= #??????????????? | | ???????????????????????????[ < #??????????????? | | ???????????????????????????? #??????????????? | | ?????????????????????????????######??????????????? | | ?????????????????????????????????????????????????? | | ?????????????????????????????????????????????????? | | ?????????????????????????????????????????????????? | | ?????????????????????????????????????????????????? | | ?????????????????????????????????????????????????? | | ?????????????????????????????????????????????????? | | ?????????????????????????????????????????????????? | | ?????????????????????????????????????????????????? | | ?????????????????????????????????????????????????? | | ?????????????????????????????????????????????????? | | ?????????????????????????????????????????????????? | | ?????????????????????????????????????????????????? | | ?????????????????????????????????????????????????? | | ?????????????????????????????????????????????????? | | ?????????????????????????????????????????????????? | | ?????????????????????????????????????????????????? | | ?????????????????????????????????????????????????? | | ?????????????????????????????????????????????????? | | ?????????????????????????????????????????????????? | +----------------------------------------------------+ Best States ------------- Heat Dissipation 25 Energy Generation 10 Energy Capacity 900 Matter Stores 300 Matter Capacity 300 Sight Range 18 Terrain Scan Density 10 Resistance: KI 10 Resistance: TH 10 Resistance: EX 5 Evasion (%) 62 Armor Integrity Analysis 33 Offensive Hacking 20 Defensive Hacking 10 Item Schematics ----------------- Imp. Targeting Computer | -9/Materials | Hacked EMP Blaster | -9/Materials | Hacked Robot Schematics ------------------ None Fabricated ------------ Nothing Alien Tech Used ----------------- None Achievements -------------- None Challenges ------------ None RPGLIKE | -11 -10 -10 -9 -9 -9 -8 --------- Run | Scr Mat Min Mat Min Exi Min Levels Raised 3 | . 1 . 1 1 . . XP Earned 8860 | 3000 1885 825 1650 500 200 800 XP Spent 7150 | 2700 1500 . 1800 1150 . . Upgrades 17 | 7 3 . 2 5 . . Utility Slot 3 | 2 . . 1 . . . Mass Support 1 | 1 . . . . . . Ranged Accuracy 4 | . 3 . 1 . . . Hack Attack % 2 | 2 . . . . . . Hack Defense % 2 | 2 . . . . . . KI Resistance % 2 | . . . . 2 . . TH Resistance % 2 | . . . . 2 . . EX Resistance % 1 | . . . . 1 . . Protomatter Created 181 | . 173 . . . . 8 Integrity Restored 411 | . 411 . . . . . Core 411 | . 411 . . . . . Protomatter Decayed 39 | . 36 3 . . . . Game ------ Seed FlakAlphaSteel Manual? 0 Play Time 00:24:35 Cumulative 83.0 hours Start 2020.10.02 @ 14:38:33 End 2020.10.02 @ 15:02:43 Sessions 1 Manual Loads 0 Difficulty Rogue Special Mode Winter2019/RPGLIKE Game No. 121 Rogue 97 Adventurer 22 Explorer 2 Win Type - Total 1 Types 1/0/0/0/0/0/0/0/0 Lore% 44 Gallery% 48 Achievement% 39 Wizard Run 0 Options --------- ASCII 0 Keyboard 0 Movement Numpad Keybinds 0 Fullscreen 1 Font 14/SmallcapsGlow Map View 84x54 Tactical HUD 1 Map Filters NONE Filters NONE Steam 1 RUN: 10b68073-abfa-403b-b01c-670b3f5f30a4